bitfinex/quotes_BTCUSD_20260101
["timestamp","ask_amount","ask_price","bid_price","bid_amount"]
[1767272925062,0.05855876,88008.0,87998.0,0.42126131]
[1767272925063,0.12630214,88010.0,88004.0,0.01136311]
[1767272925241,0.12740619,88010.0,88008.0,0.000549]
[1767272925657,0.12740619,88010.0,88007.0,0.01136273]
[1767272925658,0.00010598,88010.0,88007.0,0.01136273]
[1767272926026,0.0001467,88013.0,88007.0,0.01136273]
[1767272926227,0.01122241,88018.0,88008.0,0.0113626]
[1767272926397,0.01122241,88018.0,88009.0,0.01136247]
[1767272926592,0.01122241,88018.0,88008.0,0.0113626]
[1767272926866,0.01122241,88018.0,88008.0,0.42126002]
[1767272927014,0.01122241,88018.0,88008.0,0.0113626]
[1767272927760,0.01122241,88018.0,88007.0,0.01136273]
[1767272928148,0.01122241,88018.0,88008.0,0.0113626]
[1767272928582,0.01122241,88018.0,88009.0,0.01136247]
[1767272929190,0.01122241,88018.0,88010.0,0.01136234]
[1767272929413,0.01122241,88018.0,88011.0,0.01136221]
[1767272930137,0.01122241,88018.0,88012.0,0.01136208]
[1767272930731,0.01122241,88018.0,88013.0,0.01136195]
[1767272930888,0.06002155,88018.0,88013.0,0.01136195]
[1767272931093,0.01122241,88018.0,88013.0,0.01136195]
[1767272931699,0.01122241,88018.0,88012.0,0.01136208]
[1767272932444,0.0001467,88022.0,88013.0,0.01136195]
[1767272932445,0.12644883,88022.0,88013.0,0.01136195]
[1767272932641,0.12644883,88022.0,88012.0,0.01136208]
[1767272932987,0.12644883,88022.0,88013.0,0.01136195]
[1767272933182,0.17524797,88022.0,88012.0,0.01136208]
[1767272933502,0.12644883,88022.0,88010.0,0.40989742]
[1767272933704,0.04700786,88021.0,88012.0,0.01136208]
[1767272933907,0.04700786,88021.0,88011.0,0.0681732]
[1767272934132,0.04700786,88021.0,88012.0,0.01136208]
[1767272934308,0.04700786,88021.0,88013.0,0.01136195]
[1767272934522,0.01064978,88020.0,88011.0,0.01136221]
[1767272934872,0.01064978,88019.0,88011.0,0.01136221]
[1767272935053,0.00965171,88018.0,88011.0,0.01136221]
[1767272935248,0.04700786,88021.0,88011.0,0.01136221]
[1767272935480,0.04700786,88021.0,88010.0,0.42125976]
[1767272935729,0.04700786,88021.0,88013.0,0.01136195]
[1767272935927,0.04700786,88021.0,88011.0,0.01136221]
[1767272936070,0.04606074,88021.0,88010.0,0.40989742]
[1767272936266,0.04606074,88021.0,88010.0,0.42125976]
[1767272936514,0.04606074,88021.0,88010.0,0.40989742]
[1767272936713,0.04606074,88021.0,88010.0,0.46670885]
[1767272936895,0.04606074,88021.0,88012.0,0.01136208]
[1767272937299,0.04606074,88021.0,88011.0,0.01136221]
[1767272937499,0.04606074,88021.0,88013.0,0.01136195]
[1767272937696,0.04606074,88021.0,88012.0,0.01136208]
[1767272937896,0.04606074,88021.0,88011.0,0.01136221]
[1767272938101,0.04606074,88021.0,88012.0,0.01136208]
[1767272938814,0.04606074,88021.0,88013.0,0.01136195]
[1767272939642,0.04606074,88021.0,88012.0,0.01136208]
[1767272940056,0.04606074,88021.0,88013.0,0.01136195]
[1767272940451,0.04606074,88021.0,88012.0,0.01136208]
[1767272940818,0.04606074,88021.0,88013.0,0.01136195]
[1767272941020,0.04606074,88021.0,88014.0,0.01136182]
[1767272941220,0.04606074,88021.0,88013.0,0.01136195]
[1767272941463,0.04606074,88021.0,88014.0,0.01136182]
[1767272942083,0.04606074,88021.0,88013.0,0.01136195]
[1767272942289,0.04606074,88021.0,88011.0,0.01136221]
[1767272943014,0.04606074,88021.0,88013.0,0.01136195]
[1767272944447,0.04606074,88021.0,88012.0,0.01136208]
[1767272944649,0.04606074,88021.0,88010.0,0.06817348]
[1767272944801,0.04606074,88021.0,88012.0,0.01136208]
[1767272945592,0.04606074,88021.0,88013.0,0.01136195]
[1767272946626,0.04606074,88021.0,88012.0,0.01136208]
[1767272946830,0.04606074,88021.0,88013.0,0.01136195]
[1767272947160,0.01064598,88020.0,88013.0,0.01136195]
[1767272947395,0.01064598,88019.0,88013.0,0.01136195]
[1767272947581,0.04606074,88021.0,88012.0,0.01136208]
[1767272947731,0.0106467,88020.0,88013.0,0.01136195]
[1767272947932,0.0106467,88019.0,88013.0,0.01136195]
[1767272948126,0.04606074,88021.0,88013.0,0.01136195]
[1767272948354,0.01064763,88020.0,88013.0,0.01136195]
[1767272948558,0.01064763,88019.0,88013.0,0.01136195]
[1767272948758,0.04606074,88021.0,88013.0,0.01136195]
[1767272948959,0.01064763,88020.0,88013.0,0.01136195]
[1767272949160,0.01064763,88019.0,88013.0,0.01136195]
[1767272949335,0.01064763,88018.0,88013.0,0.01136195]
[1767272949555,0.04606074,88021.0,88011.0,0.01136221]
[1767272949757,0.01064885,88020.0,88011.0,0.01136221]
[1767272949979,0.01064885,88019.0,88011.0,0.01136221]
[1767272950194,0.01064885,88018.0,88012.0,0.01136208]
[1767272950396,0.04606074,88021.0,88012.0,0.01136208]
[1767272950587,0.0106503,88020.0,88011.0,0.01136221]
[1767272950816,0.0106503,88019.0,88010.0,0.42125976]
[1767272951027,0.0106503,88018.0,88011.0,0.01136221]
[1767272951228,0.0106503,88017.0,88011.0,0.01136221]
[1767272951433,0.04606074,88021.0,88011.0,0.01136221]
[1767272951639,0.01065213,88020.0,88011.0,0.01136221]
[1767272951841,0.01065213,88019.0,88011.0,0.01136221]
[1767272952042,0.01065213,88018.0,88010.0,0.01136234]
[1767272952241,0.01065213,88017.0,88010.0,0.01136234]
[1767272952449,0.01065213,88016.0,88010.0,0.01136234]
[1767272952668,0.04606074,88021.0,88010.0,0.01136234]
[1767272952848,0.01065436,88020.0,88010.0,0.01136234]
[1767272953044,0.04606074,88021.0,88010.0,0.01136234]
[1767272953045,0.01065436,88019.0,88011.0,0.01136221]
[1767272953253,0.01065436,88018.0,88011.0,0.01136221]
[1767272953473,0.01065436,88017.0,88011.0,0.01136221]
[1767272953649,0.01065436,88016.0,88011.0,0.01136221]
[1767272953793,0.04606074,88021.0,88011.0,0.01136221]
[1767272953996,0.01065722,88020.0,88010.0,0.01136234]
[1767272954197,0.01065722,88019.0,88010.0,0.42125976]
[1767272954442,0.01065722,88018.0,88010.0,0.42125976]
[1767272954593,0.01065722,88017.0,88011.0,0.01136221]
[1767272954824,0.01065722,88016.0,88011.0,0.01136221]
[1767272955027,0.01065722,88015.0,88011.0,0.01136221]
[1767272955226,0.01065722,88014.0,88011.0,0.01136221]
[1767272955453,0.02456716,88020.0,88011.0,0.01136221]
[1767272955920,0.02456716,88020.0,88010.0,0.42125976]
[1767272956067,0.02456716,88020.0,88010.0,0.40989742]
[1767272956614,0.02456716,88020.0,88011.0,0.01136221]
[1767272956794,0.02456716,88020.0,88010.0,0.42125976]
[1767272957022,0.02456716,88020.0,88011.0,0.01136221]
[1767272957374,0.02456716,88020.0,88010.0,0.40989742]
[1767272957737,0.02456716,88020.0,88008.0,0.0113626]
[1767272957940,0.02456716,88020.0,88010.0,0.40989742]
[1767272959416,0.04655879,88011.0,88008.0,0.0114]
[1767272959619,0.04700786,88019.0,88008.0,0.01150598]
[1767272959806,0.07158557,88018.0,88008.0,0.01150598]
[1767272959992,0.02457771,88017.0,88008.0,0.01150598]
[1767272961413,0.05840786,88016.0,87992.0,0.04583851]
[1767272961595,0.12730021,88006.0,87995.0,0.0114]
[1767272961795,0.17430807,88006.0,87995.0,0.0114]
[1767272962433,0.17430807,88006.0,87993.0,0.01136454]
[1767272962641,0.04874931,88005.0,87996.0,0.0114]
[1767272962836,0.04874931,88005.0,87996.0,0.01134317]
[1767272963235,0.04874931,88005.0,87996.0,0.02270732]
[1767272963506,0.04874931,88005.0,87996.0,0.01134317]
[1767272963689,0.04874931,88005.0,87996.0,0.0114]
[1767272964869,0.04874931,88005.0,87991.0,0.0001467]
[1767272965079,0.04874931,88005.0,87992.0,0.0114]
[1767272965304,0.04874931,88005.0,87992.0,0.02276466]
[1767272966237,0.12730021,88004.0,87995.0,0.01136428]
[1767272968636,0.12730021,88004.0,87996.0,0.01136415]
[1767272969015,0.12730021,88004.0,87997.0,0.01136402]
[1767272970050,0.12730021,88004.0,87998.0,0.01136389]
[1767272970644,0.12730021,88004.0,87999.0,0.01136376]
[1767272970839,0.12675021,88004.0,88000.0,0.01136363]
[1767272971643,0.12675021,88004.0,87999.0,0.01136376]
[1767272972013,0.0114,88009.0,87996.0,0.01136415]
[1767272972167,0.12730021,88006.0,87998.0,0.01136389]
[1767272974284,0.12730021,88006.0,87999.0,0.01136376]
[1767272978747,0.12730021,88006.0,87998.0,0.01136389]
[1767272978942,0.12730021,88006.0,87999.0,0.01136376]
[1767272980535,0.12730021,88006.0,87999.0,0.06019213]
[1767272980744,0.12730021,88006.0,88000.0,0.01136363]
[1767272981339,0.12730021,88006.0,88001.0,0.0113635]
[1767272983547,0.12730021,88006.0,88000.0,0.01136363]
[1767272983799,0.12730021,88006.0,88001.0,0.0113635]
[1767272984753,0.12630214,88006.0,88001.0,0.0113635]
[1767272986332,0.01066026,88005.0,88001.0,0.0113635]
[1767272986629,0.12630214,88006.0,88001.0,0.0113635]
[1767272986832,0.12630214,88006.0,88003.0,0.01136324]
[1767272989273,0.0002,88010.0,88004.0,0.01136311]
[1767272989438,0.12730021,88008.0,88003.0,0.01136324]
[1767272989634,0.01066455,88007.0,88003.0,0.01136324]
[1767272989969,0.12730021,88008.0,88002.0,0.01136337]
[1767272990273,0.01066455,88007.0,88003.0,0.01136324]
[1767272990596,0.01066455,88006.0,88003.0,0.01136324]
[1767272990792,0.01066455,88007.0,88003.0,0.01136324]
[1767272990940,0.01066623,88006.0,88003.0,0.01136324]
[1767272991141,0.12730021,88008.0,88003.0,0.01136324]
[1767272991341,0.01066838,88007.0,88003.0,0.01136324]
[1767272991544,0.01066838,88006.0,88003.0,0.01136324]
[1767272991768,0.12730021,88008.0,88003.0,0.01136324]
[1767272991968,0.01066837,88007.0,88003.0,0.01136324]
[1767272992285,0.01066837,88006.0,88003.0,0.01136324]
[1767272992484,0.12730021,88008.0,88003.0,0.01136324]
[1767272992664,0.01066823,88007.0,88003.0,0.01136324]
[1767272992866,0.01066823,88006.0,88003.0,0.01136324]
[1767272993203,0.12730021,88008.0,88003.0,0.01136324]
[1767272993367,0.0106681,88007.0,88003.0,0.01136324]
[1767272993568,0.0106681,88006.0,88003.0,0.01136324]
[1767272993768,0.12730021,88008.0,88003.0,0.01136324]
[1767272993991,0.0106681,88007.0,88003.0,0.01136324]
[1767272994191,0.0106681,88006.0,88003.0,0.01136324]
[1767272994391,0.12730021,88008.0,88003.0,0.01136324]
[1767272994593,0.01066785,88007.0,88003.0,0.01136324]
[1767272994792,0.01066785,88006.0,88003.0,0.01136324]
[1767272995113,0.12730021,88008.0,88003.0,0.01136324]
[1767272995414,0.01066769,88007.0,88003.0,0.01136324]
[1767272995712,0.01066769,88006.0,88003.0,0.01136324]
[1767272995909,0.12730021,88008.0,88003.0,0.01136324]
[1767272996176,0.01066769,88007.0,88004.0,0.01136311]
[1767272996351,0.00966962,88006.0,88004.0,0.01136311]
[1767272996598,0.12730021,88008.0,88005.0,0.01136299]
[1767272996714,0.12730021,88008.0,88006.0,0.04729594]
[1767272997319,0.12630214,88008.0,88006.0,0.04729594]
[1767272998490,0.12530407,88008.0,88006.0,0.04729594]
[1767272999457,0.124306,88008.0,88006.0,0.04729594]
[1767273000072,0.124306,88008.0,88005.0,0.06817746]
[1767273000475,0.12330793,88008.0,88005.0,0.1154734]
[1767273001199,0.0002,88010.0,88007.0,0.01136273]
[1767273001400,0.0002,88010.0,88006.0,0.01136286]
[1767273001641,0.02457426,88016.0,88006.0,0.01136286]
[1767273001935,0.02457426,88016.0,88007.0,0.01136273]
[1767273002455,0.02457426,88016.0,88006.0,0.01136286]
[1767273002593,0.02457426,88016.0,88007.0,0.01136273]
[1767273003881,0.02457426,88016.0,88008.0,0.0113626]
[1767273004894,0.02457426,88016.0,88007.0,0.01136273]
[1767273005213,0.02457426,88016.0,88006.0,0.01136286]
[1767273005420,0.02457426,88016.0,88007.0,0.01136273]
[1767273006423,0.02457426,88016.0,88008.0,0.0113626]
[1767273006631,0.02457426,88016.0,88007.0,0.01136273]
[1767273006833,0.02457426,88016.0,88008.0,0.0113626]
[1767273007056,0.02457426,88016.0,88007.0,0.01136273]
[1767273007828,0.02457426,88016.0,88008.0,0.0113626]
[1767273008030,0.02457426,88016.0,88009.0,0.01136247]
[1767273008174,0.02457426,88016.0,88008.0,0.0113626]
[1767273008383,0.00966715,88015.0,88009.0,0.01136247]
[1767273008581,0.02457426,88016.0,88010.0,0.01136234]
[1767273009716,0.02457426,88016.0,88009.0,0.01136247]
[1767273010578,0.02457426,88016.0,88010.0,0.01136234]
[1767273010740,0.02357619,88015.0,88009.0,0.01136247]
[1767273010928,0.00010594,88017.0,88009.0,0.01136247]
[1767273012009,0.12650219,88022.0,88011.0,0.01136221]
[1767273012221,0.1265744,88022.0,88011.0,0.01136221]
[1767273013043,0.1265744,88022.0,88009.0,0.05865841]
[1767273013789,0.1265744,88022.0,88010.0,0.01136234]
[1767273013990,0.1265744,88022.0,88009.0,0.05865841]
[1767273014823,0.1265744,88022.0,88010.0,0.01136234]
[1767273015745,0.1265744,88022.0,88009.0,0.05865841]
[1767273015946,0.1265744,88022.0,88010.0,0.01136234]
[1767273019353,0.1265744,88022.0,88011.0,0.01136221]
[1767273019786,0.1265744,88022.0,88010.0,0.01136234]
[1767273019989,0.1265744,88022.0,88011.0,0.01136221]
[1767273020587,0.01066783,88021.0,88011.0,0.01136221]
[1767273020787,0.01066783,88020.0,88011.0,0.01136221]
[1767273020970,0.01066783,88019.0,88011.0,0.01136221]
[1767273021162,0.01066783,88018.0,88011.0,0.01136221]
[1767273021365,0.00966976,88017.0,88011.0,0.01136221]
[1767273021608,0.12730021,88021.0,88011.0,0.02276221]
[1767273021819,0.12730021,88021.0,88012.0,0.04729594]
[1767273022819,0.02457955,88020.0,88012.0,0.04729594]
[1767273024142,0.02457955,88020.0,88012.0,0.05865802]
[1767273024488,0.02457955,88020.0,88012.0,0.04729594]
[1767273024691,0.02457955,88020.0,88012.0,0.05865802]
[1767273025326,0.02457955,88020.0,88012.0,0.04729594]
[1767273025588,0.02457955,88020.0,88012.0,0.05865802]
[1767273025790,0.02457955,88020.0,88012.0,0.04729594]
[1767273026266,0.02457955,88020.0,88012.0,0.05865802]
[1767273026500,0.02457955,88020.0,88012.0,0.04729594]
[1767273026646,0.02457955,88020.0,88012.0,0.05865802]
[1767273026831,0.02457955,88020.0,88012.0,0.04729594]
[1767273027374,0.02457955,88020.0,88012.0,0.05865802]
[1767273029153,0.02457955,88020.0,88012.0,0.04729594]
[1767273030254,0.02457955,88020.0,88012.0,0.05865802]
[1767273030465,0.02457955,88020.0,88012.0,0.04729594]
[1767273031385,0.02457955,88020.0,88011.0,0.02276221]
[1767273031543,0.02457955,88020.0,88013.0,0.01136195]
[1767273031752,0.02457955,88020.0,88012.0,0.01136208]
[1767273033316,0.01066854,88019.0,88012.0,0.01136208]
[1767273033611,0.00967047,88018.0,88012.0,0.01136208]
[1767273033805,0.02457955,88020.0,88012.0,0.01136208]
[1767273033971,0.02457955,88020.0,88011.0,0.02276221]
[1767273034368,0.02457955,88020.0,88012.0,0.01136208]
[1767273034580,0.02457955,88020.0,88011.0,0.02276221]
[1767273035741,0.02457955,88020.0,88012.0,0.01136208]
[1767273035867,0.02457955,88020.0,88013.0,0.01136195]
[1767273036092,0.02457955,88020.0,88014.0,0.01136182]
[1767273039287,0.02457955,88020.0,88015.0,0.01136169]
[1767273039487,0.02457955,88019.0,88015.0,0.01136169]
[1767273039689,0.02457955,88018.0,88014.0,0.01136182]
[1767273039839,0.00021891,88022.0,88014.0,0.01136182]
[1767273040249,0.15209621,88022.0,88014.0,0.01136182]
[1767273040455,0.02457709,88021.0,88014.0,0.01136182]
[1767273044229,0.02457709,88021.0,88013.0,0.01136195]
[1767273044963,0.02457709,88021.0,88012.0,0.01136208]
[1767273045145,0.02457709,88021.0,88013.0,0.01136195]
[1767273045620,0.01066659,88020.0,88013.0,0.01136195]
[1767273045774,0.01066659,88019.0,88013.0,0.01136195]
[1767273045976,0.01066659,88018.0,88013.0,0.01136195]
[1767273046179,0.00867044,88017.0,88013.0,0.01136195]
[1767273046383,0.02457709,88021.0,88014.0,0.01136182]
[1767273047655,0.02457709,88021.0,88013.0,0.01136195]
[1767273048355,0.02457595,88020.0,88013.0,0.01136195]
[1767273048567,0.02457595,88019.0,88014.0,0.01136182]
[1767273048789,0.02357788,88018.0,88014.0,0.01136182]
[1767273048999,0.12751912,88022.0,88014.0,0.01136182]
[1767273049987,0.12751912,88022.0,88015.0,0.01136169]
[1767273050504,0.12751912,88022.0,88014.0,0.01136182]
[1767273050837,0.12751912,88022.0,88015.0,0.01136169]
[1767273050990,0.12751912,88022.0,88014.0,0.01136182]
[1767273051195,0.12751912,88022.0,88013.0,0.01136195]
[1767273051399,0.12751912,88022.0,88015.0,0.01136169]
[1767273051603,0.12751912,88022.0,88014.0,0.01136182]
[1767273052845,0.12751912,88022.0,88012.0,0.01136208]
[1767273053004,0.12751912,88022.0,88014.0,0.01136182]
[1767273054291,0.12751912,88022.0,88013.0,0.01136195]
[1767273054488,0.12751912,88022.0,88014.0,0.01136182]
[1767273055374,0.000549,88014.0,88012.0,0.01136208]
[1767273055783,0.12751912,88022.0,88014.0,0.01136182]
[1767273058191,0.01066869,88021.0,88014.0,0.01136182]
[1767273058311,0.01066869,88020.0,88012.0,0.01136208]
[1767273058505,0.01066869,88019.0,88013.0,0.01136195]
[1767273058706,0.01066869,88018.0,88014.0,0.01136182]
[1767273058909,0.01066869,88017.0,88014.0,0.01136182]
[1767273059164,0.01066869,88016.0,88014.0,0.01136182]
[1767273059345,0.00967062,88015.0,88014.0,0.01136182]
[1767273059699,0.12751912,88022.0,88014.0,0.01136182]
[1767273060211,0.12751912,88022.0,88013.0,0.01136195]
[1767273060415,0.12751912,88022.0,88011.0,0.0114]
[1767273060613,0.00055,88013.0,88011.0,0.0114]
[1767273061030,0.02458339,88021.0,88011.0,0.02276221]
[1767273062248,0.02458339,88021.0,88011.0,0.0114]
[1767273062676,0.02458339,88021.0,88011.0,0.02276221]
[1767273063368,0.02458339,88021.0,88012.0,0.01136208]
[1767273063568,0.02458339,88021.0,88011.0,0.02276221]
[1767273064335,0.02458339,88021.0,88011.0,0.0114]
[1767273064623,0.02458339,88021.0,88011.0,0.02276221]
[1767273065219,0.02458339,88021.0,88011.0,0.0114]
[1767273065421,0.02458339,88021.0,88011.0,0.02276221]
[1767273066232,0.02458339,88021.0,88011.0,0.0114]
[1767273066440,0.02458339,88021.0,88011.0,0.02276221]
[1767273067475,0.02458339,88021.0,88011.0,0.0114]
[1767273068389,0.02458339,88021.0,88011.0,0.02276221]
[1767273068782,0.02458339,88021.0,88011.0,0.0114]
[1767273068923,0.02458339,88021.0,88011.0,0.02276221]
[1767273069383,0.02458339,88021.0,88011.0,0.0114]
[1767273070325,0.07032741,88021.0,88011.0,0.0114]
[1767273070529,0.02458339,88020.0,88011.0,0.02276221]
[1767273070792,0.02458339,88020.0,88011.0,0.0114]
[1767273071512,0.01067128,88019.0,88011.0,0.0114]
[1767273071735,0.03525467,88018.0,88011.0,0.0114]
[1767273071937,0.03525467,88017.0,88011.0,0.02276221]
[1767273072150,0.01067128,88016.0,88011.0,0.0114]
[1767273072357,0.01067128,88015.0,88011.0,0.0114]
[1767273072575,0.01067128,88014.0,88011.0,0.0114]
[1767273072779,0.00967321,88013.0,88011.0,0.0114]
[1767273072985,0.02458653,88020.0,88011.0,0.0114]
[1767273073632,0.02458653,88020.0,88011.0,0.02276221]
[1767273074377,0.02458653,88020.0,88011.0,0.0114]
[1767273077673,0.02458624,88019.0,88011.0,0.0114]
[1767273077874,0.02458624,88018.0,88011.0,0.0114]
[1767273078079,0.02458624,88017.0,88011.0,0.0114]
[1767273078267,0.04574402,88021.0,88011.0,0.0114]
[1767273078553,0.02458618,88020.0,88011.0,0.0114]
[1767273083096,0.02458618,88020.0,88011.0,0.02276221]
[1767273083430,0.02458618,88020.0,88011.0,0.0114]
[1767273083980,0.02458618,88019.0,88011.0,0.0114]
[1767273084781,0.0106711,88018.0,88011.0,0.0114]
[1767273084980,0.0106711,88017.0,88011.0,0.0114]
[1767273085189,0.0106711,88016.0,88011.0,0.0114]
[1767273085391,0.0106711,88015.0,88011.0,0.0114]
[1767273085756,0.0106711,88014.0,88011.0,0.0114]
[1767273085910,0.02458618,88019.0,88011.0,0.0114]
[1767273085911,0.0106711,88013.0,88011.0,0.0114]
[1767273086119,0.0106711,88012.0,88011.0,0.0114]
[1767273086325,0.0101221,88012.0,88011.0,0.0114]
[1767273087063,0.000549,88011.0,88009.0,0.0114]
[1767273087283,0.04753713,88011.0,88009.0,0.0114]
[1767273087475,0.04698813,88011.0,88009.0,0.0114]
[1767273088174,0.04698813,88011.0,88009.0,0.010851]
[1767273088337,0.04698813,88019.0,88009.0,0.010851]
[1767273088541,0.04698813,88017.0,88009.0,0.010851]
[1767273088735,0.04698813,88015.0,88005.0,0.0114]
[1767273089779,0.04698813,88015.0,88005.0,0.02276299]
[1767273089969,0.04698813,88015.0,88004.0,0.0114]
[1767273090176,0.04698813,88013.0,88004.0,0.0114]
[1767273090379,0.02458261,88012.0,88004.0,0.0114]
[1767273091273,0.04698813,88013.0,88004.0,0.0114]
[1767273098314,0.01066408,88012.0,88001.0,0.0113635]
[1767273098517,0.01066408,88011.0,88004.0,0.0114]
[1767273098753,0.01066408,88010.0,88004.0,0.0114]
[1767273098945,0.01066408,88009.0,88004.0,0.0114]
[1767273099161,0.01066408,88008.0,88004.0,0.0114]
[1767273099320,0.04698813,88013.0,88004.0,0.0114]
[1767273099521,0.01066385,88012.0,88004.0,0.0114]
[1767273099872,0.01066385,88011.0,88004.0,0.0114]
[1767273100077,0.01066385,88010.0,88004.0,0.02276311]
[1767273100235,0.01066385,88009.0,88004.0,0.02276311]
[1767273100465,0.04698813,88018.0,88004.0,0.02276311]
[1767273100668,0.0352328,88017.0,88004.0,0.0114]
[1767273100908,0.01066368,88016.0,88004.0,0.0114]
[1767273101246,0.01066368,88015.0,88004.0,0.0114]
[1767273101418,0.01066368,88014.0,88004.0,0.0114]
[1767273101604,0.01066368,88013.0,88004.0,0.0114]
[1767273101780,0.01066368,88012.0,88004.0,0.0114]
[1767273101965,0.02456912,88017.0,88004.0,0.0114]
[1767273101966,0.01066368,88011.0,88004.0,0.02276311]
[1767273102165,0.01066368,88010.0,88004.0,0.02276311]
[1767273102409,0.01066368,88009.0,88004.0,0.02276311]
[1767273102579,0.02456912,88017.0,88004.0,0.0114]
[1767273102786,0.01066373,88016.0,88004.0,0.0114]
[1767273103121,0.01066373,88015.0,88004.0,0.0114]
[1767273103320,0.01066373,88014.0,88004.0,0.0114]
[1767273103469,0.01066373,88013.0,88004.0,0.0114]
[1767273103665,0.01066389,88012.0,88004.0,0.0114]
[1767273103921,0.01066389,88011.0,88004.0,0.0114]
[1767273104066,0.01066389,88010.0,88004.0,0.0114]
[1767273104269,0.01066389,88009.0,88004.0,0.0114]
[1767273104470,0.00966582,88008.0,88004.0,0.0114]
[1767273104715,0.02456912,88016.0,88004.0,0.0114]
[1767273105088,0.07155725,88016.0,88004.0,0.0114]
[1767273105288,0.07155725,88015.0,88004.0,0.0114]
[1767273105521,0.02456912,88014.0,88004.0,0.0114]
[1767273109720,0.02456912,88014.0,88004.0,0.02276311]
[1767273110663,0.02456912,88014.0,88004.0,0.0114]
[1767273111022,0.02456912,88014.0,88004.0,0.02276311]
[1767273111224,0.04698813,88013.0,88004.0,0.0114]
[1767273113345,0.024576,88012.0,88004.0,0.0114]
[1767273115202,0.02257985,88012.0,88004.0,0.0114]
[1767273115397,0.40978465,88020.0,88004.0,0.02276311]
[1767273115603,0.04965189,88020.0,88004.0,0.0114]
[1767273115966,0.04965189,88020.0,88004.0,0.02276311]
[1767273116367,0.06032099,88019.0,88004.0,0.02276311]
[1767273116567,0.06032099,88018.0,88004.0,0.02276311]
[1767273116795,0.0106691,88017.0,88004.0,0.02276311]
[1767273116989,0.0106691,88016.0,88004.0,0.02276311]
[1767273117190,0.0106691,88015.0,88004.0,0.0114]
[1767273117432,0.0106691,88014.0,88004.0,0.02276311]
[1767273117641,0.0106691,88013.0,88004.0,0.02276311]
[1767273117822,0.0106691,88012.0,88004.0,0.02276311]
[1767273117974,0.0106691,88011.0,88005.0,0.01136299]
[1767273118175,0.00967103,88010.0,88004.0,0.02276311]
[1767273118376,0.04965189,88018.0,88004.0,0.02276311]
[1767273120142,0.04965189,88018.0,88005.0,0.01136299]
[1767273120476,0.04965189,88018.0,88004.0,0.02276311]
[1767273120642,0.04965189,88018.0,88005.0,0.01136299]
[1767273120846,0.04965189,88018.0,88006.0,0.01136286]
[1767273121026,0.04965189,88018.0,88005.0,0.01136299]
[1767273121769,0.04965189,88018.0,88006.0,0.01136286]
[1767273121924,0.04965189,88018.0,88007.0,0.01136273]
[1767273122129,0.04965189,88018.0,88008.0,0.0113626]
[1767273123532,0.04965189,88018.0,88010.0,0.01136234]
[1767273124119,0.42153199,88030.0,88008.0,0.0113626]
[1767273124120,0.04135707,88036.0,88028.0,0.01136002]
[1767273124346,0.0004,88036.0,88028.0,0.05679951]
[1767273124541,0.0004,88036.0,88032.0,0.0113595]
[1767273124965,0.05974279,88041.0,88031.0,0.01135963]
[1767273125167,0.05974279,88041.0,88026.0,0.05680114]
[1767273125168,0.05914471,88041.0,88027.0,0.05680014]
[1767273125368,0.05914471,88041.0,88031.0,0.01135963]
[1767273125797,0.05914471,88041.0,88033.0,0.01135937]
[1767273126025,0.05914471,88041.0,88031.0,0.01135963]
[1767273126202,0.05914471,88041.0,88032.0,0.0113595]
[1767273126534,0.01136,88041.0,88033.0,0.01135937]
[1767273126821,0.01136,88041.0,88034.0,0.01135924]
[1767273127772,0.01136,88041.0,88033.0,0.01135937]
[1767273128294,0.01136,88041.0,88032.0,0.0113595]
[1767273128470,0.01136,88041.0,88031.0,0.01135963]
[1767273128858,0.01136,88041.0,88032.0,0.0113595]
[1767273129406,0.01136,88041.0,88028.0,0.06816001]
[1767273129609,0.01136,88041.0,88030.0,0.01135976]
[1767273129994,0.01136,88041.0,88029.0,0.01135989]
[1767273130195,0.01063858,88040.0,88030.0,0.01135976]
[1767273130396,0.01063858,88039.0,88030.0,0.01135976]
[1767273130598,0.01136,88041.0,88031.0,0.01135963]
[1767273130796,0.01063608,88040.0,88031.0,0.01135963]
[1767273131117,0.01063608,88039.0,88031.0,0.01135963]
[1767273131324,0.01136,88041.0,88031.0,0.01135963]
[1767273131616,0.01063399,88040.0,88031.0,0.01135963]
[1767273131825,0.01136,88041.0,88031.0,0.01135963]
[1767273131990,0.01063399,88040.0,88031.0,0.01135963]
[1767273132186,0.01136,88041.0,88031.0,0.01135963]
[1767273133036,0.01136,88041.0,88032.0,0.0113595]
[1767273133209,0.01136,88041.0,88031.0,0.01135963]
[1767273133413,0.01136,88041.0,88030.0,0.01135976]
[1767273133614,0.01136,88041.0,88029.0,0.01135989]
[1767273133822,0.01136,88041.0,88030.0,0.01135976]
[1767273134498,0.01136,88041.0,88025.0,0.10556468]
[1767273134701,0.12730021,88035.0,88025.0,0.01189475]
[1767273140074,0.12730021,88035.0,88025.0,0.00049475]
[1767273144277,0.12765335,88035.0,88025.0,0.00049475]
[1767273144490,0.12730021,88034.0,88025.0,0.00049475]
[1767273144808,0.12730021,88034.0,88025.0,0.01185515]
[1767273146132,0.12730021,88034.0,88025.0,0.00049475]
[1767273146332,0.12730021,88034.0,88025.0,0.01185515]
[1767273146541,0.12730021,88034.0,88025.0,0.00049475]
[1767273150846,0.12730021,88034.0,88025.0,0.01185515]
[1767273151258,0.12730021,88034.0,88025.0,0.00049475]
[1767273151874,0.12730021,88034.0,88025.0,0.01185515]
[1767273152303,0.01065482,88033.0,88025.0,0.00049475]
[1767273152508,0.01065482,88032.0,88025.0,0.00049475]
[1767273152714,0.12730021,88034.0,88025.0,0.00049475]
[1767273152894,0.01065482,88033.0,88025.0,0.00049475]
[1767273153089,0.01065482,88032.0,88025.0,0.00049475]
[1767273153293,0.01066025,88031.0,88025.0,0.00049475]
[1767273153510,0.12730021,88034.0,88025.0,0.00049475]
[1767273153694,0.01066041,88033.0,88025.0,0.00049475]
[1767273153900,0.01066041,88032.0,88025.0,0.00049475]
[1767273154231,0.01066041,88031.0,88025.0,0.00049475]
[1767273154398,0.00966234,88030.0,88025.0,0.00049475]
[1767273154757,0.12730021,88034.0,88025.0,0.00049475]
[1767273155087,0.02457018,88033.0,88025.0,0.00049475]
[1767273156823,0.02457018,88033.0,88025.0,0.00043795]
[1767273159996,0.02457018,88033.0,88025.0,0.00038114]
[1767273160673,0.02457018,88033.0,88024.0,0.00327395]
[1767273161054,0.02457018,88033.0,88024.0,0.01463448]
[1767273161395,0.02457018,88033.0,88024.0,0.00327395]
[1767273161539,0.02457018,88033.0,88024.0,0.01463448]
[1767273161984,0.12730021,88034.0,88024.0,0.01463448]
[1767273163316,0.12730021,88034.0,88024.0,0.00327395]
[1767273164975,0.12730021,88034.0,88024.0,0.01136]
[1767273166340,0.01066705,88033.0,88024.0,0.01136]
[1767273166528,0.12730021,88034.0,88024.0,0.01136]
[1767273166529,0.01066705,88032.0,88024.0,0.01136]
[1767273166743,0.01066705,88031.0,88024.0,0.01136]
[1767273166936,0.00966898,88030.0,88024.0,0.01136]
[1767273167301,0.12730021,88034.0,88024.0,0.01136]